[Event "The Allsvenskan 2024/25 Div II 6: SS Manhem IV- Helsingborgs ASK II"]
[Site "Goteborgs Schackcentrum, Vegatan 20, Gothenburg, Sweden"]
[Date "2025.03.16"]
[Round "1.1"]
[White "Hakansson, Stefan"]
[Black "Ottgard, Andreas"]
[Result "1-0"]
[TimeControl "90 minutes for 40 moves + 30 minutes for the rest of the game + 30 seconds per move from move one."]
[WhiteFideId "1708198"]
[BlackFideId "1730592"]
[WhiteElo "1985"]
[BlackElo "1915"]

1. d4 {[%clk 01:30:55]} {[%emt 00:00:04]} d6 {[%clk 01:30:08]} {[%emt
00:00:42]} 2. Nf3 {[%clk 01:30:03]} {[%emt 00:01:33]} g6 {[%clk 01:29:01]}
{[%emt 00:01:38]} 3. Bf4 {[%clk 01:30:04]} {[%emt 00:00:26]} Bg7 {[%clk
01:28:56]} {[%emt 00:00:36]} 4. e4 {[%clk 01:29:01]} {[%emt 00:01:33]} Nf6
{[%clk 01:18:58]} {[%emt 00:10:30]} 5. Nbd2 {[%clk 01:26:15]} {[%emt 00:03:15]}
Nbd7 {[%clk 01:16:28]} {[%emt 00:03:00]} 6. Bc4 {[%clk 01:25:06]} {[%emt
00:01:38]} O-O {[%clk 01:11:24]} {[%emt 00:05:35]} 7. Qe2 {[%clk 01:23:15]}
{[%emt 00:02:20]} c6 {[%clk 00:59:50]} {[%emt 00:12:05]} 8. h4 {[%clk
01:19:48]} {[%emt 00:03:56]} h5 {[%clk 00:53:27]} {[%emt 00:06:53]} 9. e5
{[%clk 01:17:40]} {[%emt 00:02:38]} dxe5 {[%emt 00:07:47]} 10. dxe5 {[%clk
01:17:49]} {[%emt 00:00:06]} Nd5 {[%clk 00:46:17]} {[%emt 00:00:39]} 11. Bxd5
{[%clk 01:16:33]} {[%emt 00:01:45]} cxd5 {[%clk 00:46:39]} {[%emt 00:00:09]} 12.
e6 {[%clk 01:13:28]} {[%emt 00:03:34]} Nc5 {[%clk 00:45:02]} {[%emt 00:02:07]}
13. exf7+ {[%clk 01:12:55]} {[%emt 00:01:03]} Rxf7 {[%clk 00:44:49]} {[%emt
00:00:44]} 14. Be5 {[%clk 01:12:39]} {[%emt 00:00:43]} Bf6 {[%clk 00:33:54]}
{[%emt 00:11:28]} 15. O-O-O {[%clk 00:59:13]} {[%emt 00:13:55]} Bg4 {[%clk
00:27:31]} {[%emt 00:06:53]} 16. Qe3 {[%clk 00:56:10]} {[%emt 00:03:33]} Rc8
{[%clk 00:23:23]} {[%emt 00:04:38]} 17. Kb1 {[%clk 00:54:27]} {[%emt 00:02:12]}
Kg7 {[%clk 00:19:04]} {[%emt 00:04:50]} 18. Rde1 {[%clk 00:40:17]} {[%emt
00:14:41]} Ne4 {[%clk 00:11:04]} {[%emt 00:08:30]} 19. Bxf6+ {[%clk 00:35:00]}
{[%emt 00:05:47]} exf6 {[%clk 00:11:09]} {[%emt 00:00:25]} 20. Nd4 {[%clk
00:34:47]} {[%emt 00:00:42]} Nxd2+ {[%clk 00:07:16]} {[%emt 00:04:23]} 21. Qxd2
{[%clk 00:34:27]} {[%emt 00:00:50]} Re7 {[%clk 00:05:36]} {[%emt 00:02:10]} 22.
f3 {[%clk 00:34:12]} {[%emt 00:00:46]} Bd7 {[%clk 00:05:52]} {[%emt 00:00:14]}
23. Qb4 {[%clk 00:17:20]} {[%emt 00:17:20]} Rxe1+ {[%clk 00:03:05]} {[%emt
00:03:20]} 24. Rxe1 {[%clk 00:17:48]} {[%emt 00:00:02]} Rc7 {[%clk 00:02:45]}
{[%emt 00:00:48]} 25. Re7+ {[%clk 00:17:31]} {[%emt 00:00:46]} Kg8 {[%clk
00:01:19]} {[%emt 00:01:58]} 26. Qd6 {[%clk 00:17:15]} {[%emt 00:00:45]} Qc8
{[%clk 00:00:45]} {[%emt 00:01:05]} 27. Qxf6 {[%clk 00:16:52]} {[%emt
00:00:52]} 1-0

[Event "The Allsvenskan 2024/25 Div II 6: SS Manhem IV- Helsingborgs ASK II"]
[Site "Goteborgs Schackcentrum, Vegatan 20, Gothenburg, Sweden"]
[Date "2025.03.16"]
[Round "1.2"]
[White "Torkkeli, Ted"]
[Black "Andersson, Stefan"]
[Result "1/2-1/2"]
[TimeControl "90 minutes for 40 moves + 30 minutes for the rest of the game + 30 seconds per move from move one."]
[WhiteFideId "1737724"]
[BlackFideId "1729535"]
[WhiteElo "1879"]
[BlackElo "1930"]

1. e4 {[%clk 01:30:54]} {[%emt 00:00:06]} e5 {[%clk 01:30:44]} {[%emt
00:00:16]} 2. Nf3 {[%clk 01:31:14]} {[%emt 00:00:11]} Nc6 {[%clk 01:31:06]}
{[%emt 00:00:08]} 3. Bb5 {[%clk 01:31:37]} {[%emt 00:00:07]} a6 {[%clk
01:31:06]} {[%emt 00:00:29]} 4. Ba4 {[%clk 01:31:58]} {[%emt 00:00:10]} b5
{[%clk 01:31:04]} {[%emt 00:00:13]} 5. Bb3 {[%clk 01:32:21]} {[%emt 00:00:26]}
Bc5 {[%clk 01:30:44]} {[%emt 00:00:51]} 6. c3 {[%clk 01:32:30]} {[%emt
00:00:20]} d6 {[%clk 01:30:33]} {[%emt 00:00:41]} 7. O-O {[%clk 01:32:20]}
{[%emt 00:00:39]} Nge7 {[%clk 01:30:21]} {[%emt 00:00:42]} 8. d4 {[%clk
01:30:45]} {[%emt 00:02:06]} exd4 {[%clk 01:30:41]} {[%emt 00:00:09]} 9. cxd4
{[%clk 01:30:56]} {[%emt 00:00:19]} Bb6 {[%clk 01:31:02]} {[%emt 00:00:11]} 10.
h3 {[%clk 01:26:48]} {[%emt 00:04:37]} O-O {[%clk 01:30:16]} {[%emt 00:01:15]}
11. Be3 {[%clk 01:26:17]} {[%emt 00:01:01]} Na5 {[%clk 01:27:58]} {[%emt
00:02:48]} 12. Bc2 {[%clk 01:25:25]} {[%emt 00:01:23]} f5 {[%clk 01:23:16]}
{[%emt 00:05:12]} 13. Nc3 {[%clk 01:21:41]} {[%emt 00:04:14]} fxe4 {[%clk
01:22:12]} {[%emt 00:01:33]} 14. Nxe4 {[%clk 01:17:38]} {[%emt 00:04:34]} Bf5
{[%clk 01:13:06]} {[%emt 00:09:36]} 15. Bg5 {[%clk 01:10:54]} {[%emt 00:07:14]}
Qd7 {[%clk 01:06:57]} {[%emt 00:06:39]} 16. Re1 {[%clk 01:00:47]} {[%emt
00:10:37]} Rae8 {[%clk 01:06:06]} {[%emt 00:01:20]} 17. a4 {[%clk 00:52:39]}
{[%emt 00:08:39]} Ng6 {[%clk 00:58:32]} {[%emt 00:08:03]} 18. axb5 {[%clk
00:47:45]} {[%emt 00:05:25]} axb5 {[%clk 00:54:13]} {[%emt 00:04:49]} 19. Bd2
{[%clk 00:37:18]} {[%emt 00:10:57]} Nc6 {[%clk 00:52:29]} {[%emt 00:02:14]} 20.
Bc3 {[%clk 00:28:18]} {[%emt 00:09:29]} b4 {[%clk 00:39:43]} {[%emt 00:13:16]}
21. d5 {[%clk 00:27:52]} {[%emt 00:00:56]} Bxe4 {[%clk 00:38:44]} {[%emt
00:01:29]} 22. Bxe4 {[%clk 00:22:53]} {[%emt 00:05:29]} Nce5 {[%clk 00:29:41]}
{[%emt 00:09:33]} 23. Bxb4 {[%clk 00:15:30]} {[%emt 00:07:53]} Nxf3+ {[%clk
00:28:19]} {[%emt 00:01:53]} 24. Bxf3 {[%clk 00:15:48]} {[%emt 00:00:12]} Ne5
{[%clk 00:28:38]} {[%emt 00:00:11]} 25. Rxe5 {[%clk 00:13:35]} {[%emt
00:02:43]} Rxe5 {[%clk 00:28:58]} {[%emt 00:00:11]} 26. Bc3 {[%clk 00:13:14]}
{[%emt 00:00:50]} Rg5 {[%clk 00:27:52]} {[%emt 00:01:35]} 27. Qd2 {[%clk
00:10:09]} {[%emt 00:03:35]} h6 {[%clk 00:24:36]} {[%emt 00:03:46]} 28. Kh2
{[%clk 00:09:29]} {[%emt 00:01:10]} Qf7 {[%clk 00:20:31]} {[%emt 00:04:35]} 29.
Re1 {[%clk 00:09:03]} {[%emt 00:00:56]} Rf5 {[%clk 00:17:09]} {[%emt 00:03:53]}
30. Bg4 {[%clk 00:05:30]} {[%emt 00:04:03]} Rxd5 {[%clk 00:16:32]} {[%emt
00:01:06]} 31. Qxd5 {[%clk 00:04:39]} {[%emt 00:01:21]} Qxd5 {[%clk 00:16:53]}
{[%emt 00:00:10]} 32. Be6+ {[%clk 00:05:04]} {[%emt 00:00:04]} Qxe6 {[%clk
00:17:15]} {[%emt 00:00:08]} 33. Rxe6 {[%clk 00:05:30]} {[%emt 00:00:05]} Rxf2
{[%clk 00:17:36]} {[%emt 00:00:09]} 34. Re7 {[%clk 00:04:59]} {[%emt 00:01:00]}
Rf7 {[%clk 00:17:56]} {[%emt 00:00:11]} 35. Re8+ {[%clk 00:05:00]} {[%emt
00:00:29]} Kh7 {[%clk 00:18:18]} {[%emt 00:00:07]} 36. Re4 {[%clk 00:04:46]}
{[%emt 00:00:43]} Rd7 {[%clk 00:18:07]} {[%emt 00:00:42]} 37. Kg3 {[%clk
00:02:53]} {[%emt 00:02:23]} d5 {[%clk 00:17:54]} {[%emt 00:00:43]} 38. Rg4
{[%clk 00:02:35]} {[%emt 00:00:48]} d4 {[%clk 00:16:52]} {[%emt 00:01:33]} 39.
Bd2 {[%clk 00:02:48]} {[%emt 00:00:16]} Re7 {[%clk 00:16:55]} {[%emt 00:00:28]}
40. Kf3 {[%clk 00:02:39]} {[%emt 00:00:38]} g5 {[%clk 00:14:38]} {[%emt
00:02:47]} 41. b4 {[%clk 00:29:42]} {[%emt 00:03:27]} Kg6 {[%clk 00:42:35]}
{[%emt 00:02:33]} 42. h4 {[%clk 00:29:14]} {[%emt 00:00:58]} Re5 {[%clk
00:42:54]} {[%emt 00:00:12]} 43. hxg5 {[%clk 00:28:27]} {[%emt 00:01:17]} hxg5
{[%clk 00:43:10]} {[%emt 00:00:13]} 44. Re4 {[%clk 00:24:16]} {[%emt 00:04:41]}
Rf5+ {[%clk 00:40:56]} {[%emt 00:02:45]} 45. Ke2 {[%clk 00:24:02]} {[%emt
00:00:43]} Kf6 {[%clk 00:39:40]} {[%emt 00:01:46]} 46. g4 {[%clk 00:22:58]}
{[%emt 00:01:34]} Rd5 {[%clk 00:39:31]} {[%emt 00:00:40]} 47. Kd3 {[%clk
00:22:30]} {[%emt 00:00:57]} Rd8 {[%clk 00:35:49]} {[%emt 00:04:11]} 48. Re2
{[%clk 00:19:19]} {[%emt 00:03:43]} Rh8 {[%clk 00:35:34]} {[%emt 00:00:44]} 49.
Rf2+ {[%clk 00:18:23]} {[%emt 00:01:26]} Ke6 {[%clk 00:33:57]} {[%emt
00:02:08]} 50. Bxg5 {[%clk 00:16:29]} {[%emt 00:02:23]} Rh3+ {[%clk 00:34:13]}
{[%emt 00:00:13]} 51. Ke4 {[%clk 00:15:02]} {[%emt 00:01:58]} Rg3 {[%clk
00:34:18]} {[%emt 00:00:25]} 52. Rf6+ {[%clk 00:13:36]} {[%emt 00:01:56]} Kd7
{[%clk 00:34:24]} {[%emt 00:00:24]} 53. Bd2 {[%clk 00:09:29]} {[%emt 00:04:37]}
Rxg4+ {[%clk 00:34:06]} {[%emt 00:00:49]} 54. Kd3 {[%clk 00:09:47]} {[%emt
00:00:11]} Kc8 {[%emt 00:02:44]} 55. Rf5 {[%clk 00:09:02]} {[%emt 00:01:14]}
Kb7 {[%clk 00:32:07]} {[%emt 00:00:17]} 56. b5 {[%clk 00:08:22]} {[%emt
00:01:09]} Rg3+ {[%clk 00:30:25]} {[%emt 00:02:11]} 57. Kc4 {[%clk 00:08:14]}
{[%emt 00:00:38]} Rg1 {[%clk 00:28:15]} {[%emt 00:02:41]} 58. Rh5 {[%clk
00:06:50]} {[%emt 00:01:54]} Rb1 {[%clk 00:27:34]} {[%emt 00:01:12]} 59. Rf5
{[%clk 00:06:24]} {[%emt 00:00:56]} Rb2 {[%clk 00:26:47]} {[%emt 00:01:16]} 60.
Kd3 {[%clk 00:06:31]} {[%emt 00:00:23]} Ba7 {[%clk 00:26:27]} {[%emt 00:00:51]}
61. Ba5 {[%clk 00:04:51]} {[%emt 00:02:10]} Ra2 {[%clk 00:23:54]} {[%emt
00:03:02]} 62. Be1 {[%clk 00:03:48]} {[%emt 00:01:34]} Ra1 {[%clk 00:23:16]}
{[%emt 00:01:08]} 63. Bd2 {[%clk 00:03:29]} {[%emt 00:00:49]} Rh1 {[%clk
00:19:09]} {[%emt 00:04:36]} 64. Bb4 {[%clk 00:02:47]} {[%emt 00:01:13]} Rh3+
{[%clk 00:17:06]} {[%emt 00:02:33]} 65. Kc4 {[%clk 00:03:01]} {[%emt 00:00:16]}
Rh4 {[%clk 00:13:17]} {[%emt 00:04:19]} 66. Ba5 {[%clk 00:03:03]} {[%emt
00:00:28]} Rh7 {[%clk 00:12:35]} {[%emt 00:01:12]} 67. Rd5 {[%clk 00:03:07]}
{[%emt 00:00:26]} Rh1 {[%clk 00:12:29]} {[%emt 00:00:36]} 68. Bb4 {[%clk
00:02:53]} {[%emt 00:00:44]} Rc1+ {[%clk 00:12:20]} {[%emt 00:00:39]} 69. Kd3
{[%clk 00:03:06]} {[%emt 00:00:17]} Kb6 {[%clk 00:11:17]} {[%emt 00:01:33]} 70.
Kxd4 {[%clk 00:02:46]} {[%emt 00:00:50]} Rd1+ {[%clk 00:11:19]} {[%emt
00:00:28]} 71. Kc4 {[%clk 00:03:02]} {[%emt 00:00:13]} Rxd5 {[%clk 00:11:28]}
{[%emt 00:00:22]} 72. Kxd5 {[%clk 00:03:25]} {[%emt 00:00:08]} Kxb5 {[%clk
00:11:51]} {[%emt 00:00:06]} 1/2-1/2

[Event "The Allsvenskan 2024/25 Div II 6: SS Manhem IV- Helsingborgs ASK II"]
[Site "Goteborgs Schackcentrum, Vegatan 20, Gothenburg, Sweden"]
[Date "2025.03.16"]
[Round "1.3"]
[White "Thomasson, Staffan"]
[Black "Kosmidis, Thomas"]
[Result "1-0"]
[TimeControl "90 minutes for 40 moves + 30 minutes for the rest of the game + 30 seconds per move from move one."]
[WhiteFideId "1706284"]
[BlackFideId "1753380"]
[WhiteElo "1875"]
[BlackElo "1790"]

1. c4 {[%clk 01:30:45]} {[%emt 00:00:12]} c6 {[%clk 01:30:06]} {[%emt
00:00:56]} 2. e4 {[%clk 01:29:13]} {[%emt 00:02:41]} e6 {[%clk 01:26:18]}
{[%emt 00:04:40]} 3. d4 {[%clk 01:28:15]} {[%emt 00:01:28]} d5 {[%clk
01:26:15]} {[%emt 00:00:33]} 4. Nc3 {[%clk 01:28:21]} {[%emt 00:00:25]} Nf6
{[%clk 01:25:18]} {[%emt 00:01:26]} 5. e5 {[%clk 01:25:26]} {[%emt 00:03:25]}
Nfd7 {[%clk 01:25:30]} {[%emt 00:00:18]} 6. Bd3 {[%clk 01:25:48]} {[%emt
00:00:08]} dxc4 {[%clk 01:25:34]} {[%emt 00:00:26]} 7. Bxc4 {[%clk 01:26:09]}
{[%emt 00:00:09]} Nb6 {[%clk 01:25:33]} {[%emt 00:00:31]} 8. Bb3 {[%clk
01:26:23]} {[%emt 00:00:16]} Nd5 {[%clk 01:17:32]} {[%emt 00:08:31]} 9. Nf3
{[%clk 01:25:23]} {[%emt 00:01:30]} Be7 {[%clk 01:17:02]} {[%emt 00:00:59]} 10.
O-O {[%clk 01:20:52]} {[%emt 00:05:01]} Na6 {[%clk 01:14:57]} {[%emt 00:02:36]}
11. Bc2 {[%clk 01:13:28]} {[%emt 00:07:53]} Nac7 {[%clk 01:14:06]} {[%emt
00:01:21]} 12. a3 {[%clk 01:07:41]} {[%emt 00:06:18]} b6 {[%clk 01:11:01]}
{[%emt 00:03:35]} 13. Ne4 {[%clk 01:03:19]} {[%emt 00:04:51]} Bb7 {[%clk
01:07:20]} {[%emt 00:04:10]} 14. Re1 {[%clk 00:56:02]} {[%emt 00:07:48]} h6
{[%clk 01:04:45]} {[%emt 00:03:06]} 15. Nfd2 {[%clk 00:45:55]} {[%emt
00:10:37]} Qd7 {[%clk 00:55:04]} {[%emt 00:10:11]} 16. Nc4 {[%clk 00:42:22]}
{[%emt 00:04:02]} O-O-O {[%clk 00:53:22]} {[%emt 00:02:13]} 17. Ned6+ {[%clk
00:41:14]} {[%emt 00:01:38]} Bxd6 {[%clk 00:53:33]} {[%emt 00:00:19]} 18. Nxd6+
{[%clk 00:41:21]} {[%emt 00:00:22]} Kb8 {[%clk 00:53:56]} {[%emt 00:00:07]} 19.
b4 {[%clk 00:33:36]} {[%emt 00:08:16]} Nb5 {[%clk 00:53:18]} {[%emt 00:01:08]}
20. Nxb7 {[%clk 00:31:56]} {[%emt 00:02:10]} Kxb7 {[%clk 00:52:49]} {[%emt
00:00:58]} 21. Bb2 {[%clk 00:28:35]} {[%emt 00:03:51]} g5 {[%clk 00:50:26]}
{[%emt 00:02:53]} 22. a4 {[%clk 00:26:33]} {[%emt 00:02:33]} Nbc7 {[%clk
00:48:11]} {[%emt 00:02:45]} 23. Qd2 {[%clk 00:25:25]} {[%emt 00:01:38]} g4
{[%clk 00:44:18]} {[%emt 00:04:22]} 24. Bd3 {[%clk 00:19:32]} {[%emt 00:06:23]}
h5 {[%clk 00:43:44]} {[%emt 00:01:04]} 25. Ba3 {[%clk 00:16:56]} {[%emt
00:03:06]} Rdg8 {[%clk 00:42:10]} {[%emt 00:02:04]} 26. b5 {[%clk 00:15:05]}
{[%emt 00:02:22]} cxb5 {[%clk 00:39:07]} {[%emt 00:03:32]} 27. Bd6 {[%clk
00:12:50]} {[%emt 00:02:45]} h4 {[%clk 00:28:57]} {[%emt 00:10:41]} 28. Rec1
{[%clk 00:11:58]} {[%emt 00:01:21]} g3 {[%clk 00:28:03]} {[%emt 00:01:25]} 29.
Be4 {[%clk 00:10:31]} {[%emt 00:01:57]} gxh2+ {[%clk 00:24:46]} {[%emt
00:03:47]} 30. Kxh2 {[%clk 00:10:44]} {[%emt 00:00:17]} f5 {[%clk 00:23:17]}
{[%emt 00:01:58]} 31. Rxc7+ {[%clk 00:10:55]} {[%emt 00:00:19]} Qxc7 {[%clk
00:23:14]} {[%emt 00:00:33]} 32. Bxc7 {[%clk 00:11:15]} {[%emt 00:00:10]} fxe4
{[%clk 00:22:50]} {[%emt 00:00:55]} 33. Bd6 {[%clk 00:10:46]} {[%emt 00:00:58]}
Rg7 {[%clk 00:22:46]} {[%emt 00:00:35]} 34. axb5 {[%clk 00:10:00]} {[%emt
00:01:16]} Rhg8 {[%clk 00:22:31]} {[%emt 00:00:45]} 35. Rxa7+ {[%clk 00:08:05]}
{[%emt 00:02:25]} 1-0

[Event "The Allsvenskan 2024/25 Div II 6: SS Manhem IV- Helsingborgs ASK II"]
[Site "Goteborgs Schackcentrum, Vegatan 20, Gothenburg, Sweden"]
[Date "2025.03.16"]
[Round "1.4"]
[White "Tobiasson, Bjorn"]
[Black "Berling, Egil"]
[Result "0-1"]
[TimeControl "90 minutes for 40 moves + 30 minutes for the rest of the game + 30 seconds per move from move one."]
[WhiteFideId "1773682"]
[BlackFideId "1781197"]
[WhiteElo "1911"]
[BlackElo "1869"]

1. d4 {[%clk 01:30:51]} {[%emt 00:00:09]} d5 {[%clk 01:30:45]} {[%emt
00:00:15]} 2. Nc3 {[%clk 01:31:06]} {[%emt 00:00:14]} Nf6 {[%clk 01:31:08]}
{[%emt 00:00:08]} 3. Bf4 {[%clk 01:31:30]} {[%emt 00:00:06]} c5 {[%clk
01:31:32]} {[%emt 00:00:07]} 4. e4 {[%clk 01:31:52]} {[%emt 00:00:08]} Nxe4
{[%clk 01:31:57]} {[%emt 00:00:05]} 5. Nxe4 {[%clk 01:32:14]} {[%emt 00:00:07]}
dxe4 {[%clk 01:32:22]} {[%emt 00:00:04]} 6. dxc5 {[%clk 01:32:29]} {[%emt
00:00:16]} Qa5+ {[%clk 01:32:44]} {[%emt 00:00:08]} 7. c3 {[%clk 01:32:49]}
{[%emt 00:00:10]} Qxc5 {[%clk 01:32:48]} {[%emt 00:00:27]} 8. Qa4+ {[%clk
01:33:09]} {[%emt 00:00:10]} Nc6 {[%clk 01:33:11]} {[%emt 00:00:06]} 9. Qxe4
{[%clk 01:33:31]} {[%emt 00:00:07]} g6 {[%clk 01:33:31]} {[%emt 00:00:11]} 10.
Be3 {[%clk 01:21:26]} {[%emt 00:12:34]} Qa5 {[%clk 01:31:32]} {[%emt 00:02:29]}
11. Nf3 {[%clk 01:17:32]} {[%emt 00:04:25]} Bf5 {[%clk 01:25:16]} {[%emt
00:06:47]} 12. Qh4 {[%clk 01:14:03]} {[%emt 00:03:58]} Bg7 {[%clk 01:24:46]}
{[%emt 00:01:00]} 13. Bd2 {[%clk 01:06:03]} {[%emt 00:08:30]} Qb6 {[%clk
01:08:44]} {[%emt 00:16:32]} 14. Bc4 {[%clk 00:55:50]} {[%emt 00:10:43]} Qxb2
{[%clk 01:04:37]} {[%emt 00:04:37]} 15. O-O {[%clk 00:55:03]} {[%emt 00:01:16]}
O-O {[%clk 00:59:57]} {[%emt 00:05:11]} 16. g4 {[%clk 00:37:54]} {[%emt
00:17:38]} Bf6 {[%clk 00:48:33]} {[%emt 00:11:54]} 17. Ng5 {[%clk 00:26:09]}
{[%emt 00:12:17]} Bxg5 {[%clk 00:48:43]} {[%emt 00:00:19]} 18. Bxg5 {[%clk
00:26:00]} {[%emt 00:00:39]} Be4 {[%clk 00:41:07]} {[%emt 00:08:05]} 19. Rae1
{[%clk 00:18:29]} {[%emt 00:08:02]} Ne5 {[%emt 00:03:18]} 20. Rxe4 {[%clk
00:17:42]} {[%emt 00:00:02]} Nf3+ {[%clk 00:39:56]} {[%emt 00:00:08]} 21. Kg2
{[%clk 00:17:41]} {[%emt 00:00:32]} Nxh4+ {[%clk 00:40:15]} {[%emt 00:00:10]}
22. Bxh4 {[%clk 00:18:09]} {[%emt 00:00:02]} Qxc3 {[%clk 00:37:57]} {[%emt
00:02:47]} 23. Bxe7 {[%clk 00:17:58]} {[%emt 00:00:41]} Rfe8 {[%clk 00:38:14]}
{[%emt 00:00:12]} 24. Bb3 {[%clk 00:17:14]} {[%emt 00:01:16]} Qc6 {[%clk
00:37:55]} {[%emt 00:00:48]} 25. f3 {[%clk 00:17:07]} {[%emt 00:00:37]} Rac8
{[%clk 00:34:41]} {[%emt 00:03:45]} 26. Rfe1 {[%clk 00:15:13]} {[%emt
00:02:23]} Qc3 {[%clk 00:25:56]} {[%emt 00:09:16]} 27. R1e3 {[%clk 00:11:25]}
{[%emt 00:04:19]} Qd2+ {[%clk 00:21:28]} {[%emt 00:04:53]} 28. Re2 {[%clk
00:11:41]} {[%emt 00:00:17]} Qd7 {[%clk 00:21:25]} {[%emt 00:00:30]} 29. g5
{[%clk 00:08:17]} {[%emt 00:03:59]} Rc3 {[%clk 00:19:14]} {[%emt 00:02:37]} 30.
Kg3 {[%clk 00:04:28]} {[%emt 00:04:23]} Qd3 {[%clk 00:17:16]} {[%emt 00:02:26]}
31. R4e3 {[%clk 00:02:46]} {[%emt 00:02:12]} Qxe3 {[%clk 00:17:29]} {[%emt
00:00:18]} 32. Rxe3 {[%clk 00:03:12]} {[%emt 00:00:05]} Rxe3 {[%clk 00:17:54]}
{[%emt 00:00:05]} 33. Bf6 {[%clk 00:01:58]} {[%emt 00:01:43]} b5 {[%clk
00:17:58]} {[%emt 00:00:26]} 34. Bd4 {[%clk 00:30:07]} {[%emt 00:02:21]} R3e7
{[%clk 00:48:03]} {[%emt 00:00:25]} 35. Bf6 {[%clk 00:29:16]} {[%emt 00:01:21]}
Rc7 {[%clk 00:48:18]} {[%emt 00:00:13]} 0-1

[Event "The Allsvenskan 2024/25 Div II 6: SS Manhem IV- Helsingborgs ASK II"]
[Site "Goteborgs Schackcentrum, Vegatan 20, Gothenburg, Sweden"]
[Date "2025.03.16"]
[Round "1.5"]
[White "Johansson, Daniel"]
[Black "Shchetinin, Oleg"]
[Result "1/2-1/2"]
[TimeControl "90 minutes for 40 moves + 30 minutes for the rest of the game + 30 seconds per move from move one."]
[WhiteFideId "1721640"]
[BlackFideId "1740210"]
[WhiteElo "1816"]
[BlackElo "1740"]

1. e4 {[%clk 01:30:52]} {[%emt 00:00:07]} e6 {[%clk 01:30:49]} {[%emt
00:00:11]} 2. d4 {[%clk 01:30:58]} {[%emt 00:00:24]} d5 {[%clk 01:31:11]}
{[%emt 00:00:08]} 3. Nc3 {[%clk 01:29:54]} {[%emt 00:01:34]} Nf6 {[%clk
01:29:50]} {[%emt 00:01:52]} 4. e5 {[%clk 01:28:40]} {[%emt 00:01:43]} Nfd7
{[%clk 01:29:36]} {[%emt 00:00:43]} 5. Nce2 {[%clk 01:28:39]} {[%emt 00:00:32]}
c5 {[%clk 01:28:03]} {[%emt 00:02:03]} 6. c3 {[%clk 01:28:59]} {[%emt
00:00:11]} Nc6 {[%clk 01:27:12]} {[%emt 00:01:21]} 7. Nf3 {[%clk 01:28:17]}
{[%emt 00:01:12]} cxd4 {[%clk 01:26:16]} {[%emt 00:01:26]} 8. cxd4 {[%clk
01:28:25]} {[%emt 00:00:21]} Bb4+ {[%clk 01:21:52]} {[%emt 00:04:54]} 9. Nc3
{[%clk 01:26:55]} {[%emt 00:02:00]} O-O {[%clk 01:13:53]} {[%emt 00:08:29]} 10.
Bd3 {[%clk 01:26:36]} {[%emt 00:00:50]} Be7 {[%clk 01:03:51]} {[%emt 00:10:32]}
11. O-O {[%clk 01:26:34]} {[%emt 00:00:31]} f5 {[%clk 00:57:24]} {[%emt
00:06:58]} 12. exf6 {[%clk 01:25:51]} {[%emt 00:01:12]} Nxf6 {[%clk 00:53:31]}
{[%emt 00:04:24]} 13. b3 {[%clk 01:11:40]} {[%emt 00:14:41]} Bd7 {[%clk
00:52:36]} {[%emt 00:01:24]} 14. Bb2 {[%clk 01:11:45]} {[%emt 00:00:25]} Nb4
{[%clk 00:45:16]} {[%emt 00:07:49]} 15. Bb1 {[%clk 01:11:29]} {[%emt 00:00:46]}
Bd6 {[%clk 00:41:26]} {[%emt 00:04:20]} 16. a3 {[%clk 01:07:59]} {[%emt
00:04:01]} Nc6 {[%clk 00:40:59]} {[%emt 00:00:57]} 17. Re1 {[%clk 01:04:32]}
{[%emt 00:03:57]} Ng4 {[%clk 00:31:06]} {[%emt 00:10:23]} 18. h3 {[%clk
00:59:18]} {[%emt 00:05:45]} Nh6 {[%clk 00:25:56]} {[%emt 00:05:39]} 19. Qd3
{[%clk 00:54:36]} {[%emt 00:05:11]} g6 {[%clk 00:24:20]} {[%emt 00:02:08]} 20.
Nd1 {[%clk 00:42:02]} {[%emt 00:13:04]} Nf5 {[%clk 00:22:48]} {[%emt 00:02:01]}
21. Bc2 {[%clk 00:31:03]} {[%emt 00:11:29]} Nh4 {[%clk 00:20:23]} {[%emt
00:02:55]} 22. Ne5 {[%clk 00:19:57]} {[%emt 00:11:36]} Bxe5 {[%clk 00:16:56]}
{[%emt 00:03:57]} 23. dxe5 {[%clk 00:20:07]} {[%emt 00:00:19]} Qg5 {[%clk
00:16:59]} {[%emt 00:00:28]} 24. Qg3 {[%clk 00:18:21]} {[%emt 00:02:16]} Qxg3
{[%clk 00:17:22]} {[%emt 00:00:07]} 25. fxg3 {[%clk 00:18:41]} {[%emt
00:00:10]} Nf5 {[%clk 00:17:45]} {[%emt 00:00:07]} 26. Bxf5 {[%clk 00:15:04]}
{[%emt 00:04:07]} gxf5 {[%clk 00:16:24]} {[%emt 00:01:50]} 27. Nf2 {[%clk
00:14:18]} {[%emt 00:01:16]} Na5 {[%clk 00:14:41]} {[%emt 00:02:13]} 28. Re3
{[%clk 00:11:45]} {[%emt 00:03:03]} Rac8 {[%clk 00:14:11]} {[%emt 00:00:59]} 29.
Rc1 {[%clk 00:10:33]} {[%emt 00:01:43]} Rxc1+ {[%clk 00:14:19]} {[%emt
00:00:21]} 30. Bxc1 {[%clk 00:10:57]} {[%emt 00:00:06]} Nc6 {[%clk 00:10:49]}
{[%emt 00:04:01]} 31. Nd3 {[%clk 00:06:37]} {[%emt 00:04:50]} Nd4 {[%clk
00:09:24]} {[%emt 00:01:54]} 32. Nc5 {[%clk 00:04:22]} {[%emt 00:02:46]} Bc8
{[%clk 00:08:01]} {[%emt 00:01:52]} 33. Bb2 {[%clk 00:04:30]} {[%emt 00:00:23]}
Nc6 {[%clk 00:07:44]} {[%emt 00:00:48]} 34. b4 {[%clk 00:04:11]} {[%emt
00:00:49]} b6 {[%clk 00:07:01]} {[%emt 00:01:12]} 35. Nb3 {[%clk 00:04:32]}
{[%emt 00:00:10]} Ba6 {[%clk 00:06:34]} {[%emt 00:00:56]} 36. Nd4 {[%clk
00:04:02]} {[%emt 00:00:59]} Nxd4 {[%clk 00:06:34]} {[%emt 00:00:31]} 37. Bxd4
{[%clk 00:04:27]} {[%emt 00:00:04]} Rc8 {[%clk 00:06:31]} {[%emt 00:00:33]} 38.
Rc3 {[%clk 00:04:37]} {[%emt 00:00:20]} Rxc3 {[%clk 00:06:49]} {[%emt
00:00:13]} 39. Bxc3 {[%emt 00:00:08]} 1/2-1/2